[Event "Early-Titled-Tuesday-Blitz-January-30-2024"]
[Site "Chess.com"]
[Date "2024.01.30"]
[Round "1"]
[White "LaPiToB"]
[Black "ukchessbomber"]
[Result "0-1"]
[WhiteElo "2292"]
[BlackElo "2628"]
[TimeControl "180+1"]
[EndTime "8:09:42 PST"]
[Termination "ukchessbomber won on time"]

1. d4 {[%clk 0:02:23.2]} 1... a6 {[%clk 0:02:59.7]} 2. c4 {[%clk 0:02:23.3]}
2... b5 {[%clk 0:02:59.6]} 3. cxb5 {[%clk 0:02:23.3]} 3... axb5 {[%clk
0:03:00.5]} 4. Nf3 {[%clk 0:02:23]} 4... Bb7 {[%clk 0:03:01]} 5. e3 {[%clk
0:02:22.8]} 5... Nf6 {[%clk 0:03:01.5]} 6. Bxb5 {[%clk 0:02:22]} 6... c5 {[%clk
0:03:02.2]} 7. O-O {[%clk 0:02:21.3]} 7... e6 {[%clk 0:03:02.5]} 8. Nc3 {[%clk
0:02:11.9]} 8... cxd4 {[%clk 0:03:02.7]} 9. exd4 {[%clk 0:02:10.3]} 9... Bd6
{[%clk 0:03:02.9]} 10. Bg5 {[%clk 0:02:07.2]} 10... h6 {[%clk 0:03:03]} 11. Bh4
{[%clk 0:02:07.1]} 11... Qb6 {[%clk 0:03:01.4]} 12. a4 {[%clk 0:01:51.4]} 12...
Na6 {[%clk 0:02:51.2]} 13. Re1 {[%clk 0:01:46.6]} 13... Nc7 {[%clk 0:02:50.6]}
14. Ne5 {[%clk 0:01:37]} 14... Bxe5 {[%clk 0:02:40.6]} 15. dxe5 {[%clk
0:01:36.1]} 15... Nfd5 {[%clk 0:02:41.3]} 16. Ne4 {[%clk 0:01:27.7]} 16... Nxb5
{[%clk 0:02:36]} 17. axb5 {[%clk 0:01:24.4]} 17... Rxa1 {[%clk 0:02:36.9]} 18.
Qxa1 {[%clk 0:01:23.7]} 18... O-O {[%clk 0:02:37.8]} 19. Nd6 {[%clk 0:01:19.7]}
19... Nf4 {[%clk 0:02:37.6]} 20. Nxb7 {[%clk 0:01:13.4]} 20... Qxb7 {[%clk
0:02:36.9]} 21. f3 {[%clk 0:01:12.9]} 21... Nd3 {[%clk 0:02:30]} 22. Rf1 {[%clk
0:01:06.7]} 22... Qb6+ {[%clk 0:02:22.9]} 23. Kh1 {[%clk 0:01:06.9]} 23... Rc8
{[%clk 0:02:23.1]} 24. Qa4 {[%clk 0:01:06.4]} 24... Qe3 {[%clk 0:02:09.8]} 25.
h3 {[%clk 0:01:00.1]} 25... Nxb2 {[%clk 0:01:37.6]} 26. Qa6 {[%clk 0:00:42.9]}
26... Rc2 {[%clk 0:01:36.3]} 27. b6 {[%clk 0:00:35.4]} 27... Nd3 {[%clk
0:00:37.2]} 28. b7 {[%clk 0:00:31.3]} 28... Qe2 {[%clk 0:00:37.4]} 29. b8=Q+
{[%clk 0:00:25.7]} 29... Kh7 {[%clk 0:00:37.8]} 30. Rg1 {[%clk 0:00:25.7]} 30...
Nf2+ {[%clk 0:00:36.6]} 31. Bxf2 {[%clk 0:00:25.7]} 31... Qxa6 {[%clk
0:00:37.5]} 32. Qb1 {[%clk 0:00:24.5]} 32... Qd3 {[%clk 0:00:34.4]} 33. Rd1
{[%clk 0:00:24.1]} 33... Qg6 {[%clk 0:00:30.4]} 34. Kg1 {[%clk 0:00:23]} 34...
h5 {[%clk 0:00:22.8]} 35. Rxd7 {[%clk 0:00:22.8]} 35... h4 {[%clk 0:00:23.3]}
36. Rd1 {[%clk 0:00:22.6]} 36... Qf5 {[%clk 0:00:21.6]} 37. Qb8 {[%clk
0:00:20.1]} 37... Re2 {[%clk 0:00:15.2]} 38. Qd6 {[%clk 0:00:18.2]} 38... Qc2
{[%clk 0:00:14.4]} 39. Qd3+ {[%clk 0:00:17.5]} 39... Qxd3 {[%clk 0:00:14.7]} 40.
Rxd3 {[%clk 0:00:18.4]} 40... g5 {[%clk 0:00:15.5]} 41. Bd4 {[%clk 0:00:18.1]}
41... Kg6 {[%clk 0:00:16]} 42. Rc3 {[%clk 0:00:18.4]} 42... Rd2 {[%clk
0:00:14.9]} 43. Bf2 {[%clk 0:00:18.5]} 43... Rd1+ {[%clk 0:00:13.8]} 44. Kh2
{[%clk 0:00:18.8]} 44... Rd2 {[%clk 0:00:14.7]} 45. Be3 {[%clk 0:00:18.9]} 45...
Rd5 {[%clk 0:00:14.4]} 46. Rc5 {[%clk 0:00:17.6]} 46... Rd3 {[%clk 0:00:14.8]}
47. Bf2 {[%clk 0:00:17.8]} 47... Kf5 {[%clk 0:00:14.3]} 48. Bg1 {[%clk 0:00:18]}
48... Rd2 {[%clk 0:00:12.9]} 49. Rc7 {[%clk 0:00:18]} 49... Kg6 {[%clk 0:00:13]}
50. Rc8 {[%clk 0:00:17.6]} 50... Re2 {[%clk 0:00:13.4]} 51. Rc5 {[%clk
0:00:17.3]} 51... Kf5 {[%clk 0:00:13.4]} 52. Ra5 {[%clk 0:00:18]} 52... Kf4
{[%clk 0:00:11.4]} 53. Kh1 {[%clk 0:00:16.8]} 53... Kf5 {[%clk 0:00:11.3]} 54.
Bb6 {[%clk 0:00:14.9]} 54... Re1+ {[%clk 0:00:11.2]} 55. Kh2 {[%clk 0:00:14.8]}
55... Re2 {[%clk 0:00:11.5]} 56. Ra4 {[%clk 0:00:15]} 56... Re1 {[%clk
0:00:08.9]} 57. Rg4 {[%clk 0:00:15.1]} 57... Rxe5 {[%clk 0:00:07.5]} 58. Bd8
{[%clk 0:00:14.5]} 58... f6 {[%clk 0:00:05.7]} 59. Bc7 {[%clk 0:00:14.2]} 59...
Rc5 {[%clk 0:00:05.7]} 60. Bb6 {[%clk 0:00:12.5]} 60... Rb5 {[%clk 0:00:06]} 61.
Bf2 {[%clk 0:00:12.7]} 61... Rb2 {[%clk 0:00:06.2]} 62. Bg1 {[%clk 0:00:11.7]}
62... Re2 {[%clk 0:00:06.6]} 63. Ra4 {[%clk 0:00:11.6]} 63... Kg6 {[%clk
0:00:07.1]} 64. Ra7 {[%clk 0:00:12]} 64... Re1 {[%clk 0:00:07.7]} 65. Re7 {[%clk
0:00:12.5]} 65... Re2 {[%clk 0:00:08]} 66. Kh1 {[%clk 0:00:12.9]} 66... Kf5
{[%clk 0:00:08.2]} 67. Kh2 {[%clk 0:00:13.4]} 67... Kf4 {[%clk 0:00:08.6]} 68.
Rf7 {[%clk 0:00:13.9]} 68... Kf5 {[%clk 0:00:08.5]} 69. Bd4 {[%clk 0:00:13.5]}
69... e5 {[%clk 0:00:08.5]} 70. Bc5 {[%clk 0:00:14.1]} 70... Rc2 {[%clk
0:00:07.1]} 71. Be7 {[%clk 0:00:14.3]} 71... Ke6 {[%clk 0:00:07.6]} 72. Rh7
{[%clk 0:00:14.3]} 72... Rc7 {[%clk 0:00:06.5]} 73. Rh8 {[%clk 0:00:07.2]} 73...
Rxe7 {[%clk 0:00:05.7]} 74. Ra8 {[%clk 0:00:06.7]} 74... Kf5 {[%clk 0:00:05.8]}
75. Ra4 {[%clk 0:00:06.6]} 75... Rd7 {[%clk 0:00:06.4]} 76. Re4 {[%clk
0:00:06.3]} 76... Rd4 {[%clk 0:00:06.4]} 77. Re3 {[%clk 0:00:05.8]} 77... Kf4
{[%clk 0:00:06.1]} 78. Re2 {[%clk 0:00:05.8]} 78... f5 {[%clk 0:00:06.5]} 79.
Re1 {[%clk 0:00:04.6]} 79... Rc4 {[%clk 0:00:07.1]} 80. Re2 {[%clk 0:00:04.8]}
80... Rd4 {[%clk 0:00:07.8]} 81. Re1 {[%clk 0:00:05.2]} 81... Rd2 {[%clk
0:00:08.5]} 82. Kg1 {[%clk 0:00:04.7]} 82... e4 {[%clk 0:00:05.4]} 83. fxe4
{[%clk 0:00:04.7]} 83... fxe4 {[%clk 0:00:06.3]} 84. Rf1+ {[%clk 0:00:05]} 84...
Kg3 {[%clk 0:00:06.6]} 85. Re1 {[%clk 0:00:04]} 85... Rxg2+ {[%clk 0:00:05.7]}
86. Kh1 {[%clk 0:00:04.9]} 86... Rh2+ {[%clk 0:00:06.2]} 87. Kg1 {[%clk
0:00:05.4]} 87... Rg2+ {[%clk 0:00:07.1]} 88. Kh1 {[%clk 0:00:05.9]} 88... Kxh3
{[%clk 0:00:07.1]} 89. Rxe4 {[%clk 0:00:04.2]} 89... Rg3 {[%clk 0:00:06.3]} 90.
Re1 {[%clk 0:00:02.9]} 90... Kg4 {[%clk 0:00:05.5]} 91. Rf1 {[%clk 0:00:03.1]}
91... h3 {[%clk 0:00:05.8]} 92. Rd1 {[%clk 0:00:02.3]} 92... Ra3 {[%clk
0:00:06.1]} 93. Re1 {[%clk 0:00:02.9]} 93... Kg3 {[%clk 0:00:05.6]} 94. Rg1+
{[%clk 0:00:03.4]} 94... Kh4 {[%clk 0:00:06.1]} 95. Re1 {[%clk 0:00:03.8]} 95...
g4 {[%clk 0:00:06.8]} 96. Rf1 {[%clk 0:00:04.3]} 96... g3 {[%clk 0:00:07]} 97.
Rf4+ {[%clk 0:00:04.6]} 97... Kg5 {[%clk 0:00:07.6]} 98. Rf1 {[%clk 0:00:04.5]}
98... g2+ {[%clk 0:00:07.7]} 0-1

[Event "Early-Titled-Tuesday-Blitz-January-30-2024"]
[Site "Chess.com"]
[Date "2024.01.30"]
[Round "1"]
[White "ValentinDragnev"]
[Black "topalovkramnik"]
[Result "1/2-1/2"]
[WhiteElo "2773"]
[BlackElo "2440"]
[TimeControl "180+1"]
[EndTime "8:09:59 PST"]
[Termination "Game drawn - insufficient material"]

1. e4 {[%clk 0:03:00]} 1... c5 {[%clk 0:02:58.5]} 2. Nf3 {[%clk 0:02:59.9]} 2...
d6 {[%clk 0:02:58.3]} 3. d4 {[%clk 0:03:00.2]} 3... cxd4 {[%clk 0:02:59.2]} 4.
Nxd4 {[%clk 0:03:01]} 4... Nf6 {[%clk 0:02:59.6]} 5. Nc3 {[%clk 0:03:01.5]} 5...
a6 {[%clk 0:03:00.1]} 6. Bc4 {[%clk 0:03:00.2]} 6... e6 {[%clk 0:02:58.2]} 7.
Bb3 {[%clk 0:02:59.9]} 7... b5 {[%clk 0:02:58.5]} 8. Qf3 {[%clk 0:02:57.5]} 8...
Qc7 {[%clk 0:02:34]} 9. g4 {[%clk 0:02:51.6]} 9... h6 {[%clk 0:02:22.7]} 10. h4
{[%clk 0:02:51.1]} 10... b4 {[%clk 0:02:10.5]} 11. Na4 {[%clk 0:02:46.9]} 11...
Bb7 {[%clk 0:02:09.9]} 12. Qe2 {[%clk 0:02:37.1]} 12... Nxe4 {[%clk 0:02:07.2]}
13. Rg1 {[%clk 0:02:32.8]} 13... Nd7 {[%clk 0:02:05.7]} 14. Be3 {[%clk
0:02:26.8]} 14... Be7 {[%clk 0:02:03.1]} 15. f3 {[%clk 0:02:13.9]} 15... Bxh4+
{[%clk 0:02:01.4]} 16. Kd1 {[%clk 0:02:11.9]} 16... Nec5 {[%clk 0:02:00.8]} 17.
Nf5 {[%clk 0:02:04.2]} 17... Bf6 {[%clk 0:01:55.9]} 18. Bd4 {[%clk 0:01:55.8]}
18... Bxd4 {[%clk 0:01:51.5]} 19. Nxd4 {[%clk 0:01:56.7]} 19... O-O-O {[%clk
0:01:48.3]} 20. a3 {[%clk 0:01:47.8]} 20... bxa3 {[%clk 0:01:38.9]} 21. Rxa3
{[%clk 0:01:47.5]} 21... Ne5 {[%clk 0:01:36.4]} 22. Kc1 {[%clk 0:01:42.9]} 22...
Nc6 {[%clk 0:01:32]} 23. Nxc6 {[%clk 0:01:39.4]} 23... Qxc6 {[%clk 0:01:32.9]}
24. Nxc5 {[%clk 0:01:31.6]} 24... dxc5 {[%clk 0:01:33.8]} 25. Bc4 {[%clk
0:01:29.3]} 25... Rd6 {[%clk 0:01:32.6]} 26. Qe5 {[%clk 0:01:16.3]} 26... f6
{[%clk 0:01:30]} 27. Qe3 {[%clk 0:01:15]} 27... Rhd8 {[%clk 0:01:29.7]} 28. f4
{[%clk 0:01:08.4]} 28... Kb8 {[%clk 0:01:25.5]} 29. Re1 {[%clk 0:01:05.8]} 29...
Rd4 {[%clk 0:01:22.1]} 30. Bxe6 {[%clk 0:01:03.9]} 30... Re4 {[%clk 0:01:22.4]}
31. Qxe4 {[%clk 0:01:03.4]} 31... Qxe4 {[%clk 0:01:23.1]} 32. Rxe4 {[%clk
0:01:04]} 32... Bxe4 {[%clk 0:01:23.8]} 33. Rxa6 {[%clk 0:01:03.9]} 33... Bf3
{[%clk 0:01:14.1]} 34. b3 {[%clk 0:01:03.9]} 34... Kb7 {[%clk 0:01:10.5]} 35.
Ra4 {[%clk 0:01:00.6]} 35... Rd1+ {[%clk 0:01:08.7]} 36. Kb2 {[%clk 0:01:00.4]}
36... Rg1 {[%clk 0:01:07.7]} 37. Rc4 {[%clk 0:00:56.5]} 37... Kb6 {[%clk
0:01:05.3]} 38. b4 {[%clk 0:00:56.1]} 38... cxb4 {[%clk 0:01:05.6]} 39. Rxb4+
{[%clk 0:00:57]} 39... Kc5 {[%clk 0:01:05.2]} 40. Rc4+ {[%clk 0:00:57]} 40...
Kd6 {[%clk 0:01:05.8]} 41. f5 {[%clk 0:00:54.6]} 41... Rxg4 {[%clk 0:01:03.2]}
42. Rc8 {[%clk 0:00:53.7]} 42... Ke5 {[%clk 0:00:56.1]} 43. c4 {[%clk
0:00:53.5]} 43... h5 {[%clk 0:00:53.3]} 44. c5 {[%clk 0:00:48.8]} 44... h4
{[%clk 0:00:52.6]} 45. c6 {[%clk 0:00:48.6]} 45... Kd6 {[%clk 0:00:50.2]} 46. c7
{[%clk 0:00:47.3]} 46... Bb7 {[%clk 0:00:48.8]} 47. Rh8 {[%clk 0:00:38.9]} 47...
Kxc7 {[%clk 0:00:48.5]} 48. Kc3 {[%clk 0:00:39.8]} 48... Kd6 {[%clk 0:00:48.1]}
49. Kd3 {[%clk 0:00:40.3]} 49... Ke5 {[%clk 0:00:48.3]} 50. Ke3 {[%clk 0:00:41]}
50... Bd5 {[%clk 0:00:23.1]} 51. Bc8 {[%clk 0:00:38]} 51... Rg3+ {[%clk
0:00:21.8]} 52. Kf2 {[%clk 0:00:38]} 52... Rf3+ {[%clk 0:00:22.1]} 53. Ke2
{[%clk 0:00:38.1]} 53... h3 {[%clk 0:00:20.9]} 54. Rh7 {[%clk 0:00:36.7]} 54...
Rg3 {[%clk 0:00:17.6]} 55. Kf2 {[%clk 0:00:36.5]} 55... Rg2+ {[%clk 0:00:17.7]}
56. Ke3 {[%clk 0:00:35.8]} 56... h2 {[%clk 0:00:17.1]} 57. Be6 {[%clk
0:00:32.8]} 57... h1=Q {[%clk 0:00:14.3]} 58. Rxh1 {[%clk 0:00:29.4]} 58... Rg3+
{[%clk 0:00:14.9]} 59. Kf2 {[%clk 0:00:29.6]} 59... Bxh1 {[%clk 0:00:15.6]} 60.
Kxg3 {[%clk 0:00:29.9]} 60... Bd5 {[%clk 0:00:11.9]} 61. Bc8 {[%clk 0:00:27.6]}
61... Bb3 {[%clk 0:00:09.6]} 62. Bd7 {[%clk 0:00:25.1]} 62... Bd1 {[%clk
0:00:10]} 63. Bc8 {[%clk 0:00:24.4]} 63... Bh5 {[%clk 0:00:10.5]} 64. Kh4 {[%clk
0:00:20.7]} 64... Bf7 {[%clk 0:00:09.3]} 65. Kg4 {[%clk 0:00:19.7]} 65... Be8
{[%clk 0:00:09.7]} 66. Kg3 {[%clk 0:00:18.7]} 66... Bh5 {[%clk 0:00:07.5]} 67.
Kh4 {[%clk 0:00:18.7]} 67... Be8 {[%clk 0:00:07.3]} 68. Kg4 {[%clk 0:00:19]}
68... Bf7 {[%clk 0:00:07.7]} 69. Bd7 {[%clk 0:00:18.7]} 69... Kd6 {[%clk
0:00:08.2]} 70. Bc8 {[%clk 0:00:18.8]} 70... Be8 {[%clk 0:00:07.3]} 71. Kf4
{[%clk 0:00:17.9]} 71... Bd7 {[%clk 0:00:05.4]} 72. Ba6 {[%clk 0:00:17.9]} 72...
Kd5 {[%clk 0:00:05.4]} 73. Bb7+ {[%clk 0:00:17.2]} 73... Kd4 {[%clk 0:00:05.8]}
74. Bf3 {[%clk 0:00:16.9]} 74... Kd3 {[%clk 0:00:05]} 75. Bg4 {[%clk 0:00:16.3]}
75... Kd4 {[%clk 0:00:04.8]} 76. Bf3 {[%clk 0:00:16.5]} 76... Be8 {[%clk
0:00:05.3]} 77. Bg4 {[%clk 0:00:16.6]} 77... Bf7 {[%clk 0:00:05.9]} 78. Bf3
{[%clk 0:00:16.8]} 78... Kd3 {[%clk 0:00:06.2]} 79. Bg4 {[%clk 0:00:16.6]} 79...
Be8 {[%clk 0:00:06.5]} 80. Bf3 {[%clk 0:00:16.7]} 80... Kd2 {[%clk 0:00:07.2]}
81. Bg4 {[%clk 0:00:16.5]} 81... Ke1 {[%clk 0:00:07.8]} 82. Bf3 {[%clk
0:00:15.1]} 82... Kf2 {[%clk 0:00:08.3]} 83. Be4 {[%clk 0:00:15.3]} 83... Bf7
{[%clk 0:00:07.3]} 84. Bd3 {[%clk 0:00:15.3]} 84... Kg2 {[%clk 0:00:07.4]} 85.
Be4+ {[%clk 0:00:15.3]} 85... Kh3 {[%clk 0:00:08]} 86. Bd3 {[%clk 0:00:15.6]}
86... Kh4 {[%clk 0:00:08.6]} 87. Be4 {[%clk 0:00:15.9]} 87... Kh5 {[%clk
0:00:09]} 88. Bd3 {[%clk 0:00:15.1]} 88... Be8 {[%clk 0:00:09.3]} 89. Be2+
{[%clk 0:00:15.2]} 89... Kh4 {[%clk 0:00:08.2]} 90. Bd3 {[%clk 0:00:16.1]} 90...
Bc6 {[%clk 0:00:07.8]} 91. Be2 {[%clk 0:00:15.5]} 91... Bd5 {[%clk 0:00:07.2]}
92. Bd3 {[%clk 0:00:15.6]} 92... Kh5 {[%clk 0:00:07.2]} 93. Be2+ {[%clk
0:00:15.1]} 93... Kh6 {[%clk 0:00:06.8]} 94. Bd3 {[%clk 0:00:16]} 94... Bf7
{[%clk 0:00:06.8]} 95. Be4 {[%clk 0:00:16.1]} 95... g5+ {[%clk 0:00:07]} 96.
fxg6 {[%clk 0:00:16.3]} 96... Bxg6 {[%clk 0:00:07.7]} 97. Bf3 {[%clk 0:00:16.9]}
97... Kg7 {[%clk 0:00:07.2]} 98. Bg2 {[%clk 0:00:17.3]} 98... f5 {[%clk
0:00:07.1]} 99. Bh3 {[%clk 0:00:17.1]} 99... Kf6 {[%clk 0:00:08]} 100. Bxf5
{[%clk 0:00:17.5]} 1/2-1/2

[Event "Early-Titled-Tuesday-Blitz-January-30-2024"]
[Site "Chess.com"]
[Date "2024.01.30"]
[Round "1"]
[White "Ural_bogatyr"]
[Black "BilodeauA"]
[Result "1/2-1/2"]
[WhiteElo "2542"]
[BlackElo "3024"]
[TimeControl "180+1"]
[EndTime "8:10:17 PST"]
[Termination "Game drawn by repetition"]

1. d4 {[%clk 0:03:00.9]} 1... d5 {[%clk 0:02:59.2]} 2. Nc3 {[%clk 0:03:01.4]}
2... Nf6 {[%clk 0:02:55.1]} 3. Bf4 {[%clk 0:03:01.8]} 3... e6 {[%clk 0:02:55]}
4. Nb5 {[%clk 0:03:01.5]} 4... Na6 {[%clk 0:02:52.2]} 5. e3 {[%clk 0:03:01.7]}
5... Ne4 {[%clk 0:02:41.6]} 6. a3 {[%clk 0:02:54.7]} 6... c6 {[%clk 0:02:40.6]}
7. Nc3 {[%clk 0:02:54.1]} 7... Nxc3 {[%clk 0:02:38.2]} 8. bxc3 {[%clk 0:02:55]}
8... Qa5 {[%clk 0:02:37.3]} 9. Qd2 {[%clk 0:02:54.8]} 9... Be7 {[%clk
0:02:31.4]} 10. Bd3 {[%clk 0:02:46.3]} 10... O-O {[%clk 0:02:31]} 11. Nf3 {[%clk
0:02:42.2]} 11... c5 {[%clk 0:02:28.1]} 12. O-O {[%clk 0:02:41.8]} 12... Nb8
{[%clk 0:02:17.6]} 13. c4 {[%clk 0:02:37.5]} 13... Qxd2 {[%clk 0:02:15.7]} 14.
Nxd2 {[%clk 0:02:38.4]} 14... cxd4 {[%clk 0:02:08.2]} 15. exd4 {[%clk
0:02:39.3]} 15... dxc4 {[%clk 0:02:06.3]} 16. Nxc4 {[%clk 0:02:31.4]} 16... Nc6
{[%clk 0:02:01.8]} 17. c3 {[%clk 0:02:31]} 17... Rd8 {[%clk 0:01:59.9]} 18. Be4
{[%clk 0:02:30]} 18... Bd7 {[%clk 0:01:57.6]} 19. a4 {[%clk 0:02:21.2]} 19...
Rac8 {[%clk 0:01:56.3]} 20. Rfb1 {[%clk 0:02:07.9]} 20... Nxd4 {[%clk
0:01:43.5]} 21. cxd4 {[%clk 0:02:06.4]} 21... Rxc4 {[%clk 0:01:43.6]} 22. Rxb7
{[%clk 0:01:58.1]} 22... Rxd4 {[%clk 0:01:39.8]} 23. f3 {[%clk 0:01:58.1]} 23...
f5 {[%clk 0:01:29]} 24. Be3 {[%clk 0:01:55.4]} 24... Rb4 {[%clk 0:01:25.8]} 25.
Rxb4 {[%clk 0:01:16]} 25... Bxb4 {[%clk 0:01:26.7]} 26. Bb7 {[%clk 0:01:16.3]}
26... Rb8 {[%clk 0:00:46]} 27. Ba6 {[%clk 0:01:14.6]} 27... Ba5 {[%clk
0:00:40.9]} 28. Rd1 {[%clk 0:00:35.9]} 28... Bxa4 {[%clk 0:00:40.8]} 29. Ra1
{[%clk 0:00:35.3]} 29... Rb4 {[%clk 0:00:41]} 30. Bxa7 {[%clk 0:00:35.5]} 30...
Bc7 {[%clk 0:00:19.8]} 31. Bc5 {[%clk 0:00:32.6]} 31... Be5 {[%clk 0:00:18.8]}
32. Re1 {[%clk 0:00:24.8]} 32... Bd4+ {[%clk 0:00:19.2]} 33. Bxd4 {[%clk
0:00:24.1]} 33... Rxd4 {[%clk 0:00:20.1]} 34. Rxe6 {[%clk 0:00:24.5]} 34... Kf7
{[%clk 0:00:20.7]} 35. Rb6 {[%clk 0:00:22.6]} 35... h5 {[%clk 0:00:18.9]} 36.
Bb5 {[%clk 0:00:17]} 36... Bc2 {[%clk 0:00:17.8]} 37. Rc6 {[%clk 0:00:14.2]}
37... Bb3 {[%clk 0:00:18.3]} 38. Rb6 {[%clk 0:00:13.2]} 38... Ba2 {[%clk
0:00:16.4]} 39. Ra6 {[%clk 0:00:11.6]} 39... Rd1+ {[%clk 0:00:15]} 40. Kf2
{[%clk 0:00:11.2]} 40... Rd2+ {[%clk 0:00:15.7]} 41. Kg3 {[%clk 0:00:10.4]}
41... Be6 {[%clk 0:00:11.2]} 42. h4 {[%clk 0:00:07.5]} 42... Rd4 {[%clk
0:00:11.4]} 43. Ra4 {[%clk 0:00:05.6]} 43... Rd2 {[%clk 0:00:10.1]} 44. Bc4
{[%clk 0:00:05.2]} 44... Bxc4 {[%clk 0:00:04.9]} 45. Rxc4 {[%clk 0:00:06.1]}
45... Kf6 {[%clk 0:00:05.6]} 46. Rc6+ {[%clk 0:00:05.4]} 46... Kf7 {[%clk
0:00:06.3]} 47. Rc7+ {[%clk 0:00:05.6]} 47... Kg6 {[%clk 0:00:06.7]} 48. Rc6+
{[%clk 0:00:05.8]} 48... Kh7 {[%clk 0:00:06.8]} 49. Rc5 {[%clk 0:00:05.8]} 49...
g6 {[%clk 0:00:07.2]} 50. Rc7+ {[%clk 0:00:05.7]} 50... Kh6 {[%clk 0:00:07.9]}
51. Rc6 {[%clk 0:00:06.2]} 51... Ra2 {[%clk 0:00:08.2]} 52. Rb6 {[%clk
0:00:06.2]} 52... Ra4 {[%clk 0:00:08.5]} 53. Rc6 {[%clk 0:00:06.2]} 53... f4+
{[%clk 0:00:07.8]} 54. Kh3 {[%clk 0:00:05.8]} 54... Kg7 {[%clk 0:00:08.7]} 55.
Kh2 {[%clk 0:00:05.1]} 55... Rd4 {[%clk 0:00:08.7]} 56. Rb6 {[%clk 0:00:05.2]}
56... Kf7 {[%clk 0:00:08.1]} 57. Rc6 {[%clk 0:00:05.4]} 57... Rb4 {[%clk
0:00:07.4]} 58. Ra6 {[%clk 0:00:05.1]} 58... Rb5 {[%clk 0:00:07.9]} 59. Rc6
{[%clk 0:00:05.1]} 59... Rf5 {[%clk 0:00:08.4]} 60. Ra6 {[%clk 0:00:05]} 60...
Re5 {[%clk 0:00:08.9]} 61. Rb6 {[%clk 0:00:05.1]} 61... Rf5 {[%clk 0:00:09.4]}
62. Ra6 {[%clk 0:00:05.3]} 62... Rf6 {[%clk 0:00:10.3]} 63. Ra7+ {[%clk
0:00:05.1]} 63... Ke6 {[%clk 0:00:10.9]} 64. Ra6+ {[%clk 0:00:05.7]} 64... Ke5
{[%clk 0:00:11.5]} 65. Ra4 {[%clk 0:00:05.5]} 65... Rd6 {[%clk 0:00:11.9]} 66.
Re4+ {[%clk 0:00:05.8]} 66... Kf5 {[%clk 0:00:12.2]} 67. Ra4 {[%clk 0:00:06.4]}
67... Rd5 {[%clk 0:00:12.8]} 68. Re4 {[%clk 0:00:06.3]} 68... g5 {[%clk
0:00:12.1]} 69. hxg5 {[%clk 0:00:06]} 69... Kxg5 {[%clk 0:00:13]} 70. Re8 {[%clk
0:00:06.1]} 70... Rd6 {[%clk 0:00:12.1]} 71. Rg8+ {[%clk 0:00:06]} 71... Kf5
{[%clk 0:00:10.7]} 72. Rh8 {[%clk 0:00:05.9]} 72... Kg5 {[%clk 0:00:10.2]} 73.
Rg8+ {[%clk 0:00:06.2]} 73... Rg6 {[%clk 0:00:10.6]} 74. Rh8 {[%clk 0:00:06.5]}
74... Rg7 {[%clk 0:00:05.6]} 75. Rf8 {[%clk 0:00:06.5]} 75... Rg6 {[%clk
0:00:05.1]} 76. Rh8 {[%clk 0:00:06.5]} 76... Re6 {[%clk 0:00:05.6]} 77. Rg8+
{[%clk 0:00:06.6]} 77... Kf5 {[%clk 0:00:05.8]} 78. Rh8 {[%clk 0:00:06.9]} 78...
Ke5 {[%clk 0:00:06.5]} 79. Rxh5+ {[%clk 0:00:06.9]} 79... Kd4 {[%clk 0:00:07.3]}
80. Rf5 {[%clk 0:00:07.2]} 80... Ke3 {[%clk 0:00:07.7]} 81. Rh5 {[%clk
0:00:06.9]} 81... Rg6 {[%clk 0:00:08.2]} 82. Kg1 {[%clk 0:00:06.3]} 82... Ra6
{[%clk 0:00:07]} 83. Re5+ {[%clk 0:00:06.3]} 83... Kd3 {[%clk 0:00:06.5]} 84.
Re4 {[%clk 0:00:07]} 84... Rf6 {[%clk 0:00:07.1]} 85. Kf2 {[%clk 0:00:06.4]}
85... Rf7 {[%clk 0:00:07.4]} 86. Re6 {[%clk 0:00:06.1]} 86... Rf8 {[%clk
0:00:07.7]} 87. Re4 {[%clk 0:00:06.6]} 87... Rf7 {[%clk 0:00:08]} 88. g4 {[%clk
0:00:06.2]} 88... fxg3+ {[%clk 0:00:07]} 89. Kxg3 {[%clk 0:00:06.2]} 89... Rf8
{[%clk 0:00:07.8]} 90. Re7 {[%clk 0:00:06]} 90... Rg8+ {[%clk 0:00:07.9]} 91.
Kf2 {[%clk 0:00:05.6]} 91... Rf8 {[%clk 0:00:08.2]} 92. Re6 {[%clk 0:00:06.1]}
92... Rg8 {[%clk 0:00:08.7]} 93. f4 {[%clk 0:00:05.7]} 93... Rf8 {[%clk
0:00:08.7]} 94. Kf3 {[%clk 0:00:06.3]} 94... Kd4 {[%clk 0:00:09.4]} 95. Re1
{[%clk 0:00:05.2]} 95... Kd5 {[%clk 0:00:08.6]} 96. Kg4 {[%clk 0:00:05.7]} 96...
Rg8+ {[%clk 0:00:08.9]} 97. Kf5 {[%clk 0:00:06.3]} 97... Rf8+ {[%clk 0:00:09.5]}
98. Kg5 {[%clk 0:00:06.9]} 98... Rg8+ {[%clk 0:00:10.3]} 99. Kf5 {[%clk
0:00:06.7]} 99... Rf8+ {[%clk 0:00:10.8]} 100. Kg4 {[%clk 0:00:07.4]} 100...
Rg8+ {[%clk 0:00:11.5]} 101. Kf3 {[%clk 0:00:07.9]} 101... Rf8 {[%clk
0:00:12.4]} 102. Re2 {[%clk 0:00:08]} 102... Kd6 {[%clk 0:00:12.6]} 103. Re3
{[%clk 0:00:07.9]} 103... Kd5 {[%clk 0:00:13.1]} 104. Re1 {[%clk 0:00:07.9]}
104... Kd6 {[%clk 0:00:13.7]} 105. Kg4 {[%clk 0:00:06.8]} 105... Rg8+ {[%clk
0:00:13.9]} 106. Kf5 {[%clk 0:00:07]} 106... Rf8+ {[%clk 0:00:14.5]} 107. Kg5
{[%clk 0:00:07.5]} 107... Rg8+ {[%clk 0:00:15]} 108. Kf5 {[%clk 0:00:06.5]}
108... Rf8+ {[%clk 0:00:15.4]} 109. Kg4 {[%clk 0:00:06.8]} 109... Rg8+ {[%clk
0:00:15.9]} 110. Kf3 {[%clk 0:00:07.4]} 110... Rf8 {[%clk 0:00:16.6]} 111. Re4
{[%clk 0:00:07.5]} 111... Kd5 {[%clk 0:00:17.1]} 112. Re1 {[%clk 0:00:07.3]}
112... Kd6 {[%clk 0:00:17.4]} 1/2-1/2